[Event "Titled Tuesday Blitz November 01 Early 2022"]
[White "Zakhartsov, Vladimir"]
[Black "Deac, Bogdan-Daniel"]
[WhiteFideId "4145097"]
[BlackFideId "1226380"]
[WhiteElo "2818"]
[BlackElo "2972"]
[Result "0-1"]
[Round "08"]
[TimeControl "180+1"]
[Date "2022.11.01"]
[WhiteClock "0:00:05"]
[BlackClock "0:00:03"]

1. e4 {[%clk 0:03:00]}  e5 {[%clk 0:02:59]} 2. Nf3 {[%clk 0:03:00]}  Nc6 {[%clk 0:03:00]} 3. Nc3 {[%clk 0:03:01]}  Nf6 {[%clk 0:02:59]} 4. a3 {[%clk 0:03:01]}  g6 {[%clk 0:02:56]} 5. Bc4 {[%clk 0:03:01]}  Bg7 {[%clk 0:02:55]} 6. d3 {[%clk 0:03:01]}  h6 {[%clk 0:02:52]} 7. O-O {[%clk 0:02:58]}  d6 {[%clk 0:02:52]} 8. h3 {[%clk 0:02:58]}  O-O {[%clk 0:02:51]} 9. Be3 {[%clk 0:02:58]}  Be6 {[%clk 0:02:47]} 10. Bxe6 {[%clk 0:02:52]}  fxe6 {[%clk 0:02:46]} 11. Ne2 {[%clk 0:02:53]}  Nh5 {[%clk 0:02:38]} 12. b4 {[%clk 0:02:48]}  Rxf3 {[%clk 0:02:30]} 13. gxf3 {[%clk 0:02:47]}  Qh4 {[%clk 0:02:29]} 14. Kg2 {[%clk 0:02:42]}  Rf8 {[%clk 0:01:33]} 15. c3 {[%clk 0:02:34]}  Qf6 {[%clk 0:01:25]} 16. Ng3 {[%clk 0:02:31]}  Nf4+ {[%clk 0:01:17]} 17. Bxf4 {[%clk 0:02:31]}  exf4 {[%clk 0:01:09]} 18. Ne2 {[%clk 0:02:31]}  Ne5 {[%clk 0:01:00]} 19. Nd4 {[%clk 0:02:06]}  c5 {[%clk 0:00:53]} 20. Nc2 {[%clk 0:02:05]}  Qg5+ {[%clk 0:00:26]} 21. Kh2 {[%clk 0:02:05]}  Qh5 {[%clk 0:00:24]} 22. Ne1 {[%clk 0:02:06]}  Nc6 {[%clk 0:00:24]} 23. Rc1 {[%clk 0:02:04]}  b6 {[%clk 0:00:23]} 24. Rg1 {[%clk 0:02:02]}  d5 {[%clk 0:00:21]} 25. b5 {[%clk 0:01:40]}  Ne5 {[%clk 0:00:18]} 26. d4 {[%clk 0:01:40]}  Nc4 {[%clk 0:00:12]} 27. dxc5 {[%clk 0:01:37]}  bxc5 {[%clk 0:00:13]} 28. Nd3 {[%clk 0:01:36]}  dxe4 {[%clk 0:00:09]} 29. fxe4 {[%clk 0:01:32]}  f3 {[%clk 0:00:10]} 30. Rg3 {[%clk 0:01:18]}  Nd6 {[%clk 0:00:10]} 31. c4 {[%clk 0:00:18]}  Nxe4 {[%clk 0:00:09]} 32. Rg4 {[%clk 0:00:18]}  Be5+ {[%clk 0:00:08]} 33. Nxe5 {[%clk 0:00:16]}  Qxe5+ {[%clk 0:00:08]} 34. Kg1 {[%clk 0:00:17]}  h5 {[%clk 0:00:08]} 35. Rxe4 {[%clk 0:00:07]}  Qg5+ {[%clk 0:00:07]} 36. Kf1 {[%clk 0:00:06]}  Qg2+ {[%clk 0:00:07]} 37. Ke1 {[%clk 0:00:07]}  Qg1+ {[%clk 0:00:07]} 38. Kd2 {[%clk 0:00:08]}  Rd8+ {[%clk 0:00:08]} 39. Kc2 {[%clk 0:00:08]}  Rxd1 {[%clk 0:00:04]} 40. Rxd1 {[%clk 0:00:09]}  Qxf2+ {[%clk 0:00:05]} 41. Rd2 {[%clk 0:00:10]}  Qf1 {[%clk 0:00:05]} 42. Re3 {[%clk 0:00:06]}  f2 {[%clk 0:00:03]} 43. Ree2 {[%clk 0:00:05]}  Qxe2 {[%clk 0:00:03]} 0-1


[Site "https://www.chess.com"]

[Event "Titled Tuesday Blitz November 01 Early 2022"]
[White "Zilleruelo Irizarry, Diego"]
[Black "Yurovskykh, Oleksandr"]
[WhiteFideId "3101460"]
[BlackFideId "14134020"]
[WhiteElo "1998"]
[BlackElo "2303"]
[Result "1/2-1/2"]
[Round "08"]
[TimeControl "180+1"]
[Date "2022.11.02"]
[WhiteClock "0:00:16"]
[BlackClock "0:00:09"]

1. e4 {[%clk 0:03:00]}  d5 {[%clk 0:02:53]} 2. exd5 {[%clk 0:03:00]}  Qxd5 {[%clk 0:02:53]} 3. Nc3 {[%clk 0:03:00]}  Qd8 {[%clk 0:02:53]} 4. Nf3 {[%clk 0:03:01]}  Bg4 {[%clk 0:02:53]} 5. h3 {[%clk 0:03:01]}  Bxf3 {[%clk 0:02:53]} 6. Qxf3 {[%clk 0:03:01]}  c6 {[%clk 0:02:54]} 7. Bc4 {[%clk 0:03:01]}  e6 {[%clk 0:02:54]} 8. d3 {[%clk 0:03:00]}  Nd7 {[%clk 0:02:55]} 9. Bf4 {[%clk 0:02:58]}  Ngf6 {[%clk 0:02:55]} 10. O-O {[%clk 0:02:57]}  Be7 {[%clk 0:02:55]} 11. Rfe1 {[%clk 0:02:57]}  O-O {[%clk 0:02:55]} 12. Bh2 {[%clk 0:02:56]}  Nd5 {[%clk 0:02:45]} 13. Bb3 {[%clk 0:02:42]}  Nxc3 {[%clk 0:02:42]} 14. bxc3 {[%clk 0:02:43]}  Nf6 {[%clk 0:02:35]} 15. Be5 {[%clk 0:02:27]}  Bd6 {[%clk 0:02:34]} 16. d4 {[%clk 0:02:22]}  Bxe5 {[%clk 0:02:10]} 17. Rxe5 {[%clk 0:02:23]}  Qd6 {[%clk 0:01:57]} 18. Rae1 {[%clk 0:02:20]}  Rac8 {[%clk 0:01:49]} 19. Rxe6 {[%clk 0:00:47]}  fxe6 {[%clk 0:01:36]} 20. Rxe6 {[%clk 0:00:48]}  Qb8 {[%clk 0:01:30]} 21. Rxf6+ {[%clk 0:00:46]}  Kh8 {[%clk 0:01:30]} 22. Rf7 {[%clk 0:00:44]}  Rxf7 {[%clk 0:01:22]} 23. Qxf7 {[%clk 0:00:44]}  Qc7 {[%clk 0:01:19]} 24. Qf5 {[%clk 0:00:37]}  Re8 {[%clk 0:01:16]} 25. Kf1 {[%clk 0:00:34]}  Qe7 {[%clk 0:01:16]} 26. g4 {[%clk 0:00:28]}  Rf8 {[%clk 0:00:53]} 27. Qe5 {[%clk 0:00:24]}  Qxe5 {[%clk 0:00:49]} 28. dxe5 {[%clk 0:00:25]}  g5 {[%clk 0:00:49]} 29. Ke2 {[%clk 0:00:24]}  Kg7 {[%clk 0:00:47]} 30. Ke3 {[%clk 0:00:24]}  Rf4 {[%clk 0:00:47]} 31. Be6 {[%clk 0:00:22]}  h6 {[%clk 0:00:45]} 32. c4 {[%clk 0:00:17]}  c5 {[%clk 0:00:43]} 33. Bd5 {[%clk 0:00:17]}  b6 {[%clk 0:00:43]} 34. c3 {[%clk 0:00:17]}  Kf8 {[%clk 0:00:43]} 35. f3 {[%clk 0:00:17]}  Ke7 {[%clk 0:00:43]} 36. Ke2 {[%clk 0:00:17]}  a6 {[%clk 0:00:41]} 37. a4 {[%clk 0:00:16]}  Kd7 {[%clk 0:00:36]} 38. Ke3 {[%clk 0:00:16]}  Kc7 {[%clk 0:00:36]} 39. Ke2 {[%clk 0:00:16]}  Kd7 {[%clk 0:00:29]} 40. Ke3 {[%clk 0:00:17]}  Ke7 {[%clk 0:00:30]} 41. Ke2 {[%clk 0:00:17]}  h5 {[%clk 0:00:29]} 42. Ke3 {[%clk 0:00:16]}  hxg4 {[%clk 0:00:28]} 43. hxg4 {[%clk 0:00:17]}  Kd7 {[%clk 0:00:23]} 44. Kd3 {[%clk 0:00:17]}  Kd8 {[%clk 0:00:23]} 45. Ke3 {[%clk 0:00:17]}  Ke7 {[%clk 0:00:23]} 46. Kd3 {[%clk 0:00:17]}  a5 {[%clk 0:00:12]} 47. Ke3 {[%clk 0:00:16]}  Kf8 {[%clk 0:00:13]} 48. Kd3 {[%clk 0:00:16]}  Kg7 {[%clk 0:00:14]} 49. Ke3 {[%clk 0:00:17]}  Rf8 {[%clk 0:00:14]} 50. Ke4 {[%clk 0:00:16]}  Rf4+ {[%clk 0:00:13]} 51. Ke3 {[%clk 0:00:16]}  Kf8 {[%clk 0:00:13]} 52. Kd3 {[%clk 0:00:16]}  Ke8 {[%clk 0:00:13]} 53. Ke3 {[%clk 0:00:17]}  Kd7 {[%clk 0:00:13]} 54. Kd3 {[%clk 0:00:17]}  Ke7 {[%clk 0:00:13]} 55. Ke3 {[%clk 0:00:17]}  Kd7 {[%clk 0:00:12]} 56. Kd3 {[%clk 0:00:17]}  Rf8 {[%clk 0:00:13]} 57. Ke4 {[%clk 0:00:18]}  Ke7 {[%clk 0:00:08]} 58. Ke3 {[%clk 0:00:15]}  Rf4 {[%clk 0:00:08]} 59. Kd3 {[%clk 0:00:15]}  Kd7 {[%clk 0:00:08]} 60. Ke3 {[%clk 0:00:15]}  Kd8 {[%clk 0:00:09]} 61. Kd3 {[%clk 0:00:16]}  Ke7 {[%clk 0:00:09]} 1/2-1/2


[Site "https://www.chess.com"]

[Event "Titled Tuesday Blitz November 01 Early 2022"]
[White "Aarav Dengla"]
[Black "Korelskiy, Egor"]
[WhiteFideId "45059756"]
[BlackFideId "34329064"]
[WhiteElo "2257"]
[BlackElo "2053"]
[Result "0-1"]
[Round "09"]
[TimeControl "180+1"]
[Date "2022.11.02"]
[WhiteClock "0:00:13"]
[BlackClock "0:00:23"]

1. e4 {[%clk 0:03:00]}  c5 {[%clk 0:02:59]} 2. Nf3 {[%clk 0:03:00]}  e6 {[%clk 0:03:00]} 3. d4 {[%clk 0:03:00]}  cxd4 {[%clk 0:03:00]} 4. Nxd4 {[%clk 0:03:00]}  a6 {[%clk 0:03:00]} 5. c4 {[%clk 0:03:01]}  Nf6 {[%clk 0:03:00]} 6. Nc3 {[%clk 0:03:01]}  Qc7 {[%clk 0:02:59]} 7. Qd3 {[%clk 0:02:58]}  Nc6 {[%clk 0:02:57]} 8. f3 {[%clk 0:02:58]}  Ne5 {[%clk 0:02:57]} 9. Qe2 {[%clk 0:02:57]}  b6 {[%clk 0:02:55]} 10. g4 {[%clk 0:02:57]}  d6 {[%clk 0:02:54]} 11. g5 {[%clk 0:02:55]}  Nfd7 {[%clk 0:02:54]} 12. f4 {[%clk 0:02:55]}  Nc6 {[%clk 0:02:54]} 13. Nxc6 {[%clk 0:02:54]}  Qxc6 {[%clk 0:02:54]} 14. Bg2 {[%clk 0:02:55]}  Bb7 {[%clk 0:02:54]} 15. Be3 {[%clk 0:02:50]}  Be7 {[%clk 0:02:49]} 16. O-O-O {[%clk 0:02:48]}  Rc8 {[%clk 0:02:45]} 17. Bf1 {[%clk 0:02:38]}  O-O {[%clk 0:02:29]} 18. Rg1 {[%clk 0:02:37]}  Nc5 {[%clk 0:02:18]} 19. Bg2 {[%clk 0:02:29]}  Qc7 {[%clk 0:02:12]} 20. h4 {[%clk 0:02:25]}  Nd7 {[%clk 0:02:10]} 21. Bf1 {[%clk 0:02:22]}  b5 {[%clk 0:02:04]} 22. cxb5 {[%clk 0:02:19]}  axb5 {[%clk 0:02:04]} 23. Qxb5 {[%clk 0:02:13]}  Bxe4 {[%clk 0:02:00]} 24. Bg2 {[%clk 0:02:12]}  Bxg2 {[%clk 0:01:59]} 25. Rxg2 {[%clk 0:02:13]}  d5 {[%clk 0:01:57]} 26. Rc2 {[%clk 0:02:13]}  Bc5 {[%clk 0:01:36]} 27. Qd3 {[%clk 0:01:55]}  Bxe3+ {[%clk 0:01:33]} 28. Qxe3 {[%clk 0:01:55]}  Nb6 {[%clk 0:01:32]} 29. h5 {[%clk 0:01:50]}  Nc4 {[%clk 0:01:30]} 30. Qd4 {[%clk 0:01:45]}  Qb6 {[%clk 0:01:10]} 31. Qxb6 {[%clk 0:01:32]}  Nxb6 {[%clk 0:01:09]} 32. b3 {[%clk 0:01:33]}  Rc7 {[%clk 0:01:05]} 33. Rd4 {[%clk 0:01:30]}  Rfc8 {[%clk 0:01:03]} 34. Kd2 {[%clk 0:01:30]}  Nd7 {[%clk 0:01:01]} 35. h6 {[%clk 0:00:43]}  Nc5 {[%clk 0:00:59]} 36. Ke3 {[%clk 0:00:31]}  Ne4 {[%clk 0:00:52]} 37. Nxe4 {[%clk 0:00:28]}  Rxc2 {[%clk 0:00:51]} 38. Nd2 {[%clk 0:00:25]}  Rxa2 {[%clk 0:00:42]} 39. hxg7 {[%clk 0:00:23]}  Kxg7 {[%clk 0:00:41]} 40. b4 {[%clk 0:00:23]}  Rc3+ {[%clk 0:00:40]} 41. Ke2 {[%clk 0:00:23]}  Rb2 {[%clk 0:00:37]} 42. f5 {[%clk 0:00:18]}  Rcb3 {[%clk 0:00:32]} 43. f6+ {[%clk 0:00:14]}  Kg6 {[%clk 0:00:27]} 44. Rh4 {[%clk 0:00:14]}  Rxb4 {[%clk 0:00:22]} 45. Rh6+ {[%clk 0:00:12]}  Kxg5 {[%clk 0:00:23]} 46. Rxh7 {[%clk 0:00:13]}  Kxf6 {[%clk 0:00:23]} 0-1


[Site "https://www.chess.com"]

[Event "Titled Tuesday Blitz November 01 Early 2022"]
[White "Baches Garcia, Guillermo"]
[Black "Manon-og, Ramon Jr."]
[WhiteFideId "2209764"]
[BlackFideId "5200776"]
[WhiteElo "2430"]
[BlackElo "2282"]
[Result "1-0"]
[Round "09"]
[TimeControl "180+1"]
[Date "2022.11.02"]
[WhiteClock "0:00:14"]
[BlackClock "0:00:21"]

1. e4 {[%clk 0:03:00]}  c5 {[%clk 0:02:55]} 2. Nf3 {[%clk 0:02:59]}  d6 {[%clk 0:02:55]} 3. d4 {[%clk 0:02:59]}  cxd4 {[%clk 0:02:56]} 4. Nxd4 {[%clk 0:03:00]}  Nf6 {[%clk 0:02:56]} 5. Nc3 {[%clk 0:03:00]}  a6 {[%clk 0:02:57]} 6. Be3 {[%clk 0:03:00]}  e5 {[%clk 0:02:57]} 7. Nb3 {[%clk 0:03:01]}  Be7 {[%clk 0:02:57]} 8. f3 {[%clk 0:03:02]}  Be6 {[%clk 0:02:57]} 9. Qd2 {[%clk 0:03:02]}  h5 {[%clk 0:02:57]} 10. Be2 {[%clk 0:03:01]}  Nc6 {[%clk 0:02:57]} 11. Nd5 {[%clk 0:02:59]}  Bxd5 {[%clk 0:02:52]} 12. exd5 {[%clk 0:02:59]}  Nb8 {[%clk 0:02:47]} 13. O-O {[%clk 0:02:53]}  Nbd7 {[%clk 0:02:46]} 14. Na5 {[%clk 0:02:48]}  Qc7 {[%clk 0:02:38]} 15. c4 {[%clk 0:02:46]}  O-O {[%clk 0:02:34]} 16. b4 {[%clk 0:02:45]}  Bd8 {[%clk 0:02:09]} 17. Rac1 {[%clk 0:02:40]}  Qc8 {[%clk 0:02:10]} 18. Nb3 {[%clk 0:02:38]}  Bb6 {[%clk 0:02:06]} 19. c5 {[%clk 0:02:36]}  dxc5 {[%clk 0:02:07]} 20. bxc5 {[%clk 0:02:36]}  Ba7 {[%clk 0:02:05]} 21. c6 {[%clk 0:02:24]}  Bxe3+ {[%clk 0:02:05]} 22. Qxe3 {[%clk 0:02:23]}  bxc6 {[%clk 0:02:05]} 23. dxc6 {[%clk 0:02:20]}  Nb8 {[%clk 0:01:59]} 24. Qb6 {[%clk 0:02:04]}  h4 {[%clk 0:01:42]} 25. Rfd1 {[%clk 0:01:49]}  h3 {[%clk 0:01:40]} 26. Qb7 {[%clk 0:01:45]}  Qxb7 {[%clk 0:01:25]} 27. cxb7 {[%clk 0:01:44]}  Ra7 {[%clk 0:01:26]} 28. Na5 {[%clk 0:01:32]}  hxg2 {[%clk 0:01:20]} 29. Rc8 {[%clk 0:01:13]}  Nfd7 {[%clk 0:01:01]} 30. Bc4 {[%clk 0:00:48]}  g6 {[%clk 0:00:44]} 31. Rd6 {[%clk 0:00:36]}  Kg7 {[%clk 0:00:41]} 32. Bd5 {[%clk 0:00:33]}  Rxb7 {[%clk 0:00:14]} 33. Bxb7 {[%clk 0:00:32]}  Rxc8 {[%clk 0:00:14]} 34. Bxc8 {[%clk 0:00:32]}  Nf6 {[%clk 0:00:12]} 35. Bxa6 {[%clk 0:00:31]}  e4 {[%clk 0:00:12]} 36. Be2 {[%clk 0:00:29]}  Kf8 {[%clk 0:00:09]} 37. Kxg2 {[%clk 0:00:28]}  Ke7 {[%clk 0:00:08]} 38. Rd4 {[%clk 0:00:28]}  exf3+ {[%clk 0:00:08]} 39. Bxf3 {[%clk 0:00:27]}  Nbd7 {[%clk 0:00:09]} 40. Nc6+ {[%clk 0:00:27]}  Kf8 {[%clk 0:00:09]} 41. Rd2 {[%clk 0:00:27]}  Nc5 {[%clk 0:00:09]} 42. a3 {[%clk 0:00:25]}  g5 {[%clk 0:00:09]} 43. Rc2 {[%clk 0:00:23]}  Ne6 {[%clk 0:00:08]} 44. a4 {[%clk 0:00:22]}  g4 {[%clk 0:00:09]} 45. Be2 {[%clk 0:00:20]}  Nf4+ {[%clk 0:00:09]} 46. Kf1 {[%clk 0:00:18]}  N4d5 {[%clk 0:00:09]} 47. Ra2 {[%clk 0:00:14]}  Ne3+ {[%clk 0:00:09]} 48. Kf2 {[%clk 0:00:13]}  Ned5 {[%clk 0:00:09]} 49. a5 {[%clk 0:00:12]}  Ne4+ {[%clk 0:00:10]} 50. Ke1 {[%clk 0:00:11]}  Nec3 {[%clk 0:00:09]} 51. Ra1 {[%clk 0:00:11]}  Nxe2 {[%clk 0:00:09]} 52. Kxe2 {[%clk 0:00:10]}  f5 {[%clk 0:00:09]} 53. a6 {[%clk 0:00:10]}  Nc7 {[%clk 0:00:09]} 54. a7 {[%clk 0:00:10]}  Kf7 {[%clk 0:00:10]} 55. a8=Q {[%clk 0:00:09]}  Nxa8 {[%clk 0:00:10]} 56. Rxa8 {[%clk 0:00:10]}  Kf6 {[%clk 0:00:11]} 57. Ke3 {[%clk 0:00:10]}  Kg5 {[%clk 0:00:11]} 58. Ra4 {[%clk 0:00:10]}  g3 {[%clk 0:00:10]} 59. hxg3 {[%clk 0:00:10]}  Kh5 {[%clk 0:00:10]} 60. Kf2 {[%clk 0:00:10]}  Kg5 {[%clk 0:00:11]} 61. Nd4 {[%clk 0:00:10]}  Kg4 {[%clk 0:00:11]} 62. Nxf5+ {[%clk 0:00:10]}  Kxf5 {[%clk 0:00:12]} 63. Kf3 {[%clk 0:00:10]}  Kg5 {[%clk 0:00:12]} 64. Rf4 {[%clk 0:00:11]}  Kg6 {[%clk 0:00:13]} 65. Kg2 {[%clk 0:00:11]}  Kg5 {[%clk 0:00:13]} 66. Kh3 {[%clk 0:00:11]}  Kh5 {[%clk 0:00:14]} 67. Re4 {[%clk 0:00:11]}  Kg5 {[%clk 0:00:14]} 68. g4 {[%clk 0:00:11]}  Kh6 {[%clk 0:00:15]} 69. Re5 {[%clk 0:00:11]}  Kg6 {[%clk 0:00:15]} 70. Kg2 {[%clk 0:00:11]}  Kh6 {[%clk 0:00:16]} 71. Rf5 {[%clk 0:00:12]}  Kg6 {[%clk 0:00:17]} 72. Rh5 {[%clk 0:00:12]}  Kg7 {[%clk 0:00:15]} 73. Kg3 {[%clk 0:00:12]}  Kg6 {[%clk 0:00:16]} 74. Kf4 {[%clk 0:00:13]}  Kg7 {[%clk 0:00:17]} 75. Rh1 {[%clk 0:00:13]}  Kg6 {[%clk 0:00:18]} 76. Rc1 {[%clk 0:00:14]}  Kh6 {[%clk 0:00:19]} 77. Rc6+ {[%clk 0:00:14]}  Kg7 {[%clk 0:00:19]} 78. Kf5 {[%clk 0:00:14]}  Kh7 {[%clk 0:00:20]} 79. g5 {[%clk 0:00:15]}  Kg7 {[%clk 0:00:20]} 80. g6 {[%clk 0:00:15]}  Kh6 {[%clk 0:00:21]} 81. Rc1 {[%clk 0:00:14]}  Kg7 {[%clk 0:00:21]} 82. Rg1 {[%clk 0:00:14]}  Kg8 {[%clk 0:00:21]} 83. g7 {[%clk 0:00:13]}  Kf7 {[%clk 0:00:19]} 84. g8=Q+ {[%clk 0:00:13]}  Ke7 {[%clk 0:00:19]} 85. Re1+ {[%clk 0:00:13]}  Kd6 {[%clk 0:00:19]} 86. Qg1 {[%clk 0:00:13]}  Kd7 {[%clk 0:00:19]} 87. Rf1 {[%clk 0:00:13]}  Kd6 {[%clk 0:00:19]} 88. Rf2 {[%clk 0:00:14]}  Kd5 {[%clk 0:00:20]} 89. Qf1 {[%clk 0:00:14]}  Kd4 {[%clk 0:00:20]} 90. Rd2+ {[%clk 0:00:14]}  Ke3 {[%clk 0:00:21]} 91. Qe1+ {[%clk 0:00:14]}  Kf3 {[%clk 0:00:21]} 92. Rf2+ {[%clk 0:00:14]}  Kg3 {[%clk 0:00:21]} 93. Qe3+ {[%clk 0:00:14]}  Kh4 {[%clk 0:00:21]} 94. Rh2# {[%clk 0:00:14]} 1-0


[Site "https://www.chess.com"]

[Event "Titled Tuesday Blitz November 01 Early 2022"]
[White "Belozerov, Andrei"]
[Black "Zhigalko, Sergei"]
[WhiteFideId "4120213"]
[BlackFideId "13502956"]
[WhiteElo "2360"]
[BlackElo "2662"]
[Result "0-1"]
[Round "09"]
[TimeControl "180+1"]
[Date "2022.11.01"]
[WhiteClock "0:00:56"]
[BlackClock "0:00:34"]

1. e4 {[%clk 0:03:00]}  c5 {[%clk 0:03:00]} 2. Nf3 {[%clk 0:02:59]}  Nc6 {[%clk 0:03:00]} 3. d4 {[%clk 0:02:59]}  cxd4 {[%clk 0:03:01]} 4. Nxd4 {[%clk 0:03:00]}  Nf6 {[%clk 0:03:02]} 5. Nc3 {[%clk 0:02:59]}  e5 {[%clk 0:03:03]} 6. Ndb5 {[%clk 0:03:00]}  d6 {[%clk 0:03:03]} 7. Bg5 {[%clk 0:02:59]}  a6 {[%clk 0:03:04]} 8. Na3 {[%clk 0:02:51]}  b5 {[%clk 0:03:04]} 9. Nd5 {[%clk 0:02:49]}  Be7 {[%clk 0:03:05]} 10. Bxf6 {[%clk 0:02:48]}  Bxf6 {[%clk 0:03:05]} 11. c4 {[%clk 0:02:48]}  b4 {[%clk 0:03:06]} 12. Nc2 {[%clk 0:02:49]}  O-O {[%clk 0:03:06]} 13. Ncxb4 {[%clk 0:02:49]}  Nxb4 {[%clk 0:03:03]} 14. Nxb4 {[%clk 0:02:50]}  Qb6 {[%clk 0:02:53]} 15. Nd5 {[%clk 0:02:49]}  Qxb2 {[%clk 0:02:44]} 16. Be2 {[%clk 0:02:49]}  Bd8 {[%clk 0:02:21]} 17. O-O {[%clk 0:02:48]}  Be6 {[%clk 0:02:18]} 18. Qd3 {[%clk 0:02:41]}  Bxd5 {[%clk 0:02:11]} 19. cxd5 {[%clk 0:02:39]}  Bb6 {[%clk 0:02:08]} 20. Rab1 {[%clk 0:02:35]}  Qd4 {[%clk 0:02:08]} 21. Qxd4 {[%clk 0:02:35]}  Bxd4 {[%clk 0:02:09]} 22. Rfc1 {[%clk 0:02:34]}  f5 {[%clk 0:02:04]} 23. exf5 {[%clk 0:01:55]}  Rxf5 {[%clk 0:01:59]} 24. Bf3 {[%clk 0:01:54]}  e4 {[%clk 0:01:51]} 25. Bxe4 {[%clk 0:01:53]}  Rxf2 {[%clk 0:01:52]} 26. Kh1 {[%clk 0:01:50]}  Rxa2 {[%clk 0:01:51]} 27. Bf5 {[%clk 0:01:42]}  a5 {[%clk 0:01:39]} 28. Be6+ {[%clk 0:01:33]}  Kh8 {[%clk 0:01:39]} 29. Rc7 {[%clk 0:01:27]}  a4 {[%clk 0:01:28]} 30. h4 {[%clk 0:01:15]}  a3 {[%clk 0:01:12]} 31. Rb4 {[%clk 0:01:00]}  Be5 {[%clk 0:00:39]} 32. g4 {[%clk 0:00:56]}  Rh2+ {[%clk 0:00:33]} 33. Kg1 {[%clk 0:00:56]}  a2 {[%clk 0:00:34]} 0-1


[Site "https://www.chess.com"]

[Event "Titled Tuesday Blitz November 01 Early 2022"]
[White "Bortnyk, Olexandr"]
[Black "Nakamura, Hikaru"]
[WhiteFideId "14120828"]
[BlackFideId "2016192"]
[WhiteElo "2723"]
[BlackElo "2909"]
[Result "0-1"]
[Round "09"]
[TimeControl "180+1"]
[Date "2022.11.01"]
[WhiteClock "0:00:03"]
[BlackClock "0:00:14"]

1. e4 {[%clk 0:03:00]}  e5 {[%clk 0:03:00]} 2. Nf3 {[%clk 0:02:59]}  Nc6 {[%clk 0:03:00]} 3. Bb5 {[%clk 0:02:58]}  Nf6 {[%clk 0:03:00]} 4. Qe2 {[%clk 0:02:58]}  Bc5 {[%clk 0:03:00]} 5. c3 {[%clk 0:02:57]}  O-O {[%clk 0:03:00]} 6. Bxc6 {[%clk 0:02:57]}  bxc6 {[%clk 0:02:55]} 7. d4 {[%clk 0:02:45]}  exd4 {[%clk 0:02:52]} 8. cxd4 {[%clk 0:02:46]}  Bb4+ {[%clk 0:02:53]} 9. Bd2 {[%clk 0:02:44]}  a5 {[%clk 0:02:53]} 10. Nc3 {[%clk 0:02:02]}  Ba6 {[%clk 0:02:18]} 11. Qe3 {[%clk 0:02:01]}  Re8 {[%clk 0:02:18]} 12. e5 {[%clk 0:01:57]}  d6 {[%clk 0:02:17]} 13. O-O-O {[%clk 0:01:55]}  Ng4 {[%clk 0:02:12]} 14. Qe1 {[%clk 0:01:45]}  dxe5 {[%clk 0:02:08]} 15. dxe5 {[%clk 0:01:43]}  Qe7 {[%clk 0:01:53]} 16. h3 {[%clk 0:01:20]}  Nxe5 {[%clk 0:01:52]} 17. Qxe5 {[%clk 0:01:21]}  Qxe5 {[%clk 0:01:53]} 18. Nxe5 {[%clk 0:01:21]}  Rxe5 {[%clk 0:01:53]} 19. Be3 {[%clk 0:01:21]}  Re7 {[%clk 0:01:33]} 20. a3 {[%clk 0:01:18]}  Bd6 {[%clk 0:01:32]} 21. Rd2 {[%clk 0:01:01]}  f5 {[%clk 0:01:26]} 22. Rdd1 {[%clk 0:00:50]}  Rae8 {[%clk 0:01:20]} 23. Bg5 {[%clk 0:00:48]}  Re6 {[%clk 0:01:19]} 24. Be3 {[%clk 0:00:36]}  Bc4 {[%clk 0:01:16]} 25. h4 {[%clk 0:00:34]}  Bb3 {[%clk 0:01:09]} 26. Rde1 {[%clk 0:00:35]}  Bc5 {[%clk 0:00:49]} 27. Kd2 {[%clk 0:00:35]}  Be7 {[%clk 0:00:45]} 28. g3 {[%clk 0:00:33]}  Bd6 {[%clk 0:00:41]} 29. Bg5 {[%clk 0:00:24]}  Be5 {[%clk 0:00:29]} 30. Re3 {[%clk 0:00:22]}  h6 {[%clk 0:00:25]} 31. Bf4 {[%clk 0:00:22]}  Bxf4 {[%clk 0:00:26]} 32. gxf4 {[%clk 0:00:23]}  Rd8+ {[%clk 0:00:26]} 33. Ke2 {[%clk 0:00:15]}  Red6 {[%clk 0:00:26]} 34. Kf3 {[%clk 0:00:14]}  Rd2 {[%clk 0:00:19]} 35. Rg1 {[%clk 0:00:06]}  Kf8 {[%clk 0:00:17]} 36. Re5 {[%clk 0:00:03]}  Rxb2 {[%clk 0:00:17]} 37. Rxf5+ {[%clk 0:00:03]}  Kg8 {[%clk 0:00:18]} 38. Kg2 {[%clk 0:00:02]}  Rc2 {[%clk 0:00:16]} 39. Nb1 {[%clk 0:00:01]}  Rd3 {[%clk 0:00:15]} 40. Re1 {[%clk 0:00:01]}  Bd5+ {[%clk 0:00:15]} 41. Kg1 {[%clk 0:00:01]}  Rh3 {[%clk 0:00:15]} 42. Rxd5 {[%clk 0:00:01]}  cxd5 {[%clk 0:00:15]} 43. Kg2 {[%clk 0:00:02]}  Rd3 {[%clk 0:00:14]} 44. a4 {[%clk 0:00:02]}  Kf7 {[%clk 0:00:14]} 45. f5 {[%clk 0:00:02]}  Kf6 {[%clk 0:00:14]} 46. h5 {[%clk 0:00:01]}  Kxf5 {[%clk 0:00:14]} 47. Re7 {[%clk 0:00:02]}  Rb3 {[%clk 0:00:13]} 48. Rf7+ {[%clk 0:00:01]}  Ke6 {[%clk 0:00:14]} 49. Rxg7 {[%clk 0:00:01]}  Rxb1 {[%clk 0:00:14]} 50. Rg6+ {[%clk 0:00:02]}  Kf5 {[%clk 0:00:14]} 51. Rxh6 {[%clk 0:00:03]}  Rb6 {[%clk 0:00:14]} 0-1


[Site "https://www.chess.com"]